Cogmind - Beta 13 @@@ ROGUE MODE // 2024.04.19 @ 11:12:35 Player: SovietPaperclip Result: Destroyed by JW-JMX(R) with Subdweller Laser Performance ------------- Evolutions (0) 0 Regions Visited (3) 600 Robots Destroyed (12) 60 Value Destroyed (227) 227 Prototype IDs (0) 0 Alien Tech Used (0) 0 Bonus (0) 0 TOTAL SCORE: 887 Bonus ------- None Cogmind --------- Core Integrity 0/250 Matter 300/300 Energy 100/100 System Corruption 3% Temperature Cool (6) Movement Core (700) Ox13 Location -10/Subcaves Parts ------- > --- POWER (1) -------- (None) > --- PROPULSION (2) --- (None) > --- UTILITY (2) ------ High-capacity Storage Unit > --- WEAPON (2) ------- (None) > --- INVENTORY (20) --- High-capacity Matter Pod (200) Hacking Suite Tractor Beam Peak State ------------ > --- POWER ------------ Light Ion Engine > --- PROPULSION ------- Light Treads Light Treads > --- UTILITY ---------- Small Storage Unit Medium Storage Unit > --- WEAPON ----------- Medium Laser Light Assault Rifle > --- INVENTORY -------- Light Ion Engine [Rating: 7] Favorites ----------- Power Light Ion Engine Engine Light Ion Engine Propulsion Light Treads Treads Light Treads Utility High-capacity Storage Unit Device Terrain Scanner Storage High-capacity Storage Unit Weapon Light Assault Rifle Energy Gun Medium Laser Ballistic Gun Light Assault Rifle Build | -11 -10 -10 -10 ------- Run | Yrd Mat Min Sub Slots Evolved . | . . . . Power . | . . . . Propulsion . | . . . . Utility . | . . . . Weapon . | . . . . Parts Attached 12 | 6 3 . 3 Power 2 | 1 . . 1 Engine 2 | 1 . . 1 Core . | . . . . Reactor . | . . . . Propulsion 3 | 2 . . 1 Treads 3 | 2 . . 1 Leg . | . . . . Wheel . | . . . . Hover . | . . . . Flight . | . . . . Utility 5 | 1 3 . 1 Device 1 | . . . 1 Storage 4 | 1 3 . . Processor . | . . . . Hackware . | . . . . Protection . | . . . . Artifact . | . . . . Weapon 2 | 2 . . . Energy Gun 1 | 1 . . . Energy Cannon . | . . . . Ballistic Gun 1 | 1 . . . Ballistic Cannon . | . . . . Launcher . | . . . . Special Weapon . | . . . . Impact Weapon . | . . . . Slashing Weapon . | . . . . Piercing Weapon . | . . . . Special Melee Weapon . | . . . . Unidentified Prototypes . | . . . . Parts Lost 8 | . . . 8 Power 2 | . . . 2 Propulsion 3 | . . . 3 Utility 1 | . . . 1 Weapon 2 | . . . 2 Highest Loss Streak 6 | . . . 6 To Critical Strikes . | . . . . Average Slot Usage (%) 82 | . 85 85 76 Engine 12 | . 14 14 10 Treads 27 | . 28 28 26 Device 3 | . . . 11 Storage 14 | . 14 14 14 Energy Gun 9 | . 14 14 . Ballistic Gun 13 | . 14 14 12 Naked Turns . | . . . . Heaviest Build 46 | 11 46 46 45 Greatest Support 40 | 40 40 40 40 Greatest Overweight (x) 2 | 2 1 1 1 Average Overweight (x) . | . . 1 1 Largest Inventory Capacity 20 | 8 20 20 20 Average Capacity 16 | 7 12 20 20 Most Carried 7 | 1 7 6 6 Average Carried 4 | . 4 6 4 Final Capacity 20 | 8 20 20 20 Final Carried 6 | 1 6 6 3 Class Distribution -------------------- 100% | Mutant Dominant Class ---------------- Mutant | -10/Materials Mutant | -10/Mines Mutant | -10/Subcaves Resources | -11 -10 -10 -10 ----------- Run | Yrd Mat Min Sub Matter Collected 546 | 242 246 . 58 Remotely . | . . . . Salvage Created 364 | . 301 17 46 Parts 19 | . 14 . 5 Haulers Intercepted 1 | . 1 . . Recyclers Shooed . | . . . . Parts Field Recycled . | . . . . Retrieved Matter . | . . . . Parts Self-Destructed 5 | . . . 5 Prevented . | . . . . Kills | -11 -10 -10 -10 ------- Run | Yrd Mat Min Sub Combat Hostiles Destroyed 11 | . 7 1 3 Guns 11 | . 7 1 3 Classes Destroyed 5 | . 4 1 . Hauler 1 | . 1 . . Operator 1 | . 1 . . Swarmer 6 | . 3 . 3 Grunt 4 | . 4 . . Assembled 1 | . . 1 . Best Kill Streak 3 | . 3 1 3 Combat Bots Only 3 | . 3 1 3 Max Kills in Single Turn 1 | . 1 1 1 Gunslinging . | . . . . Exploded . | . . . . Melee . | . . . . Uniques/NPCs Destroyed . | . . . . Combat | -11 -10 -10 -10 -------- Run | Yrd Mat Min Sub Hostile Shots Fired 109 | . 35 2 72 Missed 29 | . 8 1 20 Damage Taken 1006 | . 265 11 730 Core 271 | . 41 11 219 Absorbed by Shields . | . . . . Core Remaining (%) 100 | 100 . . . Volleys Fired 53 | . 29 3 21 Largest 2 | . 2 2 2 Hottest 70 | . 70 70 70 Shots Fired 91 | . 58 6 27 Gun 91 | . 58 6 27 Cannon . | . . . . Launcher . | . . . . Special . | . . . . Kinetic 53 | . 29 3 21 Thermal 38 | . 29 3 6 Explosive . | . . . . Electromagnetic . | . . . . Robot Hit Streak 12 | . 12 5 7 Robot Miss Streak 4 | . 3 3 4 Penetration Max . | . . . . Secondary Targets 3 | . 2 . 1 Max Gunslinging Chain 1 | . 1 . 1 Shots Hit Robots 56 | . 39 3 14 Core Hits 27 | . 19 2 6 Critical Kills . | . . . . Critical Parts Destroyed . | . . . . Critical Strikes 1 | . 1 . . Burn 1 | . 1 . . Melee Attacks . | . . . . Impact . | . . . . Slashing . | . . . . Piercing . | . . . . Sneak Attacks . | . . . . Combat Hostiles . | . . . . Follow-up Attacks . | . . . . Damage Inflicted 589 | . 396 34 159 Guns 568 | . 396 34 138 Cannons . | . . . . Explosions . | . . . . Melee . | . . . . Ramming 21 | . . . 21 Kinetic 279 | . 158 9 112 Thermal 289 | . 238 25 26 Explosive . | . . . . Electromagnetic . | . . . . Impact . | . . . . Slashing . | . . . . Piercing . | . . . . Highest Corruption 3 | . 3 3 3 Average Corruption 2 | . 2 3 3 Corruption Purged . | . . . . Corruption Blocked . | . . . . Effects 15 | . 5 4 6 Message Errors 5 | . . 3 2 Matter Fused 4 | . . 1 3 Energy Discharges 2 | . 2 . . Data Loss (minor) 2 | . 2 . . Data Loss (major) 2 | . 1 . 1 Overload Shots . | . . . . Overflow Damage . | . . . . Projectiles . | . . . . Explosions . | . . . . Melee . | . . . . Knockbacks 1 | . . . 1 Impact 1 | . . . 1 Kinetic . | . . . . Secondary . | . . . . Self-Inflicted Damage . | . . . . Shots . | . . . . Rammed 15 | . . . 15 Targets Rammed 15 | . . . 15 Kicked . | . . . . Crushed . | . . . . Highest Temperature 188 | . 188 70 . Average Temperature 55 | . 56 40 . Received Heat Transfer 234 | . 84 . 150 Siege Activations . | . . . . Robots Corrupted . | . . . . Combat Hostiles . | . . . . Parts Fried . | . . . . Impact Corruptions . | . . . . Robots Melted . | . . . . Combat Hostiles . | . . . . Parts Melted . | . . . . Heat Transferred 925 | . 777 74 74 Parts Sabotaged . | . . . . Parts Stolen . | . . . . Parts Stripped . | . . . . Power Chain Reactions . | . . . . Alert | -11 -10 -10 -10 ------- Run | Yrd Mat Min Sub Peak Influence 212 | . 212 21 . Initial 21 | . . 21 . Average 46 | . 71 21 . Maximum Alert Level 1 | . 1 . . Low Security (%) 96 | 100 93 100 . Level 1 3 | . 6 . . Level 2 . | . . . . Level 3 . | . . . . Level 4 . | . . . . Level 5 . | . . . . High Security . | . . . . Max Security . | . . . . Squads Dispatched 2 | . 2 . . Investigation 1 | . 1 . . Extermination . | . . . . Reinforcement 1 | . 1 . . Assault . | . . . . Garrison . | . . . . Intercept . | . . . . Searches Triggered . | . . . . Construction Impeded . | . . . . Haulers Reinforced . | . . . . Active Scanning Responses . | . . . . Cargo Convoy Interrupts . | . . . . Stealth | -11 -10 -10 -10 --------- Run | Yrd Mat Min Sub Distress Signals 1 | . . 1 . Communications Jammed . | . . . . Distress Signals . | . . . . Times Spotted 19 | . 14 1 4 Peak Tracking Total 4 | . 4 1 3 Tactical Retreats . | . . . . Traps | -11 -10 -10 -10 ------- Run | Yrd Mat Min Sub Traps Triggered 2 | . 2 . . Indirectly . | . . . . Trap Hack Attempts . | . . . . Triggered . | . . . . Disarmed . | . . . . Reprogrammed . | . . . . Reused . | . . . . Traps Extracted . | . . . . Installed . | . . . . Triggered . | . . . . Machines | -11 -10 -10 -10 ---------- Run | Yrd Mat Min Sub Machines Disabled . | . . . . Max in Single Turn . | . . . . Machines Repaired . | . . . . Machines Dismantled . | . . . . Machines Sabotaged . | . . . . Overloaded Fab Kills . | . . . . Hacking | -11 -10 -10 -10 --------- Run | Yrd Mat Min Sub Machines Accessed 3 | . 2 . 1 Terminals 2 | . 2 . . Fabricators . | . . . . Repair Stations . | . . . . Recycling Units . | . . . . Scanalyzers . | . . . . Garrison Access . | . . . . Total Hacks 13 | . 8 . 5 Successful 8 | . 3 . 5 Failed 5 | . 5 . . Catastrophic 2 | . 2 . . Database Lockouts . | . . . . Manual 8 | . 8 . . Terminals 8 | . 8 . . Fabricators . | . . . . Repair Stations . | . . . . Recycling Units . | . . . . Scanalyzers . | . . . . Garrison Access . | . . . . Terminal Hacks 8 | . 3 . 5 Record 5 | . . . 5 Part Schematic 3 | . 3 . . Fabricator Hacks . | . . . . Repair Station Hacks . | . . . . Recycling Unit Hacks . | . . . . Scanalyzer . | . . . . Garrison Access Hacks . | . . . . Unauthorized Hacks . | . . . . Terminals . | . . . . Fabricators . | . . . . Repair Stations . | . . . . Recycling Units . | . . . . Scanalyzers . | . . . . Garrison Access . | . . . . Data Cores Recovered . | . . . . Used . | . . . . Hacking Detections 2 | . 2 . . Full Trace Events 1 | . 1 . . Feedback Events . | . . . . Feedback Blocked . | . . . . Robot Schematics Acquired . | . . . . Robots Built . | . . . . Authchips . | . . . . Time . | . . . . Total Robot Build Rating . | . . . . Part Schematics Acquired 3 | . 3 . . Parts Built . | . . . . Authchips . | . . . . Time . | . . . . Total Part Build Rating . | . . . . Parts Repaired . | . . . . Time . | . . . . Parts Recycled . | . . . . Recycled Matter . | . . . . Retrieved Matter . | . . . . Retrieved Components . | . . . . Parts Scanalyzed . | . . . . Part Schematics Acquired . | . . . . Parts Damaged . | . . . . Bothacking | -11 -10 -10 -10 ------------ Run | Yrd Mat Min Sub Used RIF Installer . | . . . . Robots Hacked . | . . . . Non-combat . | . . . . Combat . | . . . . Robot Hacks Applied . | . . . . Relay Couplers Released . | . . . . Fabnet Peak Effective % . | . . . . Robots Rewired . | . . . . Allies Hacked . | . . . . Hacks Repelled . | . . . . Allies | -11 -10 -10 -10 -------- Run | Yrd Mat Min Sub Total Allies . | . . . . Largest Group . | . . . . Highest-Rated Group . | . . . . Highest-Rated Ally . | . . . . Total Orders . | . . . . Ally Attacks . | . . . . Total Damage . | . . . . Kills . | . . . . Allies Corrupted . | . . . . Allies Melted . | . . . . Intel | -11 -10 -10 -10 ------- Run | Yrd Mat Min Sub Robot Analysis Total . | . . . . Derelict Logs Recovered . | . . . . Drone Launches . | . . . . Drone Recoveries . | . . . . Exploration | -11 -10 -10 -10 ------------- Run | Yrd Mat Min Sub Turns Passed 1403 | 75 514 370 444 Spaces Moved 486 | 46 234 64 142 Core 11 | 11 . . . Treads 475 | 35 234 64 142 Legs . | . . . . Wheels . | . . . . Hover . | . . . . Flight . | . . . . Fastest Speed 50 | 50 160 240 240 Average Speed 199 | 143 175 240 240 Slowest Speed 240 | 160 240 240 240 Overloaded Moves . | . . . . Propulsion Burnouts . | . . . . Robots Hopped . | . . . . Cave-ins Triggered . | . . . . Exploration Rate (%) 17 | 4 46 8 11 Regions Visited 3 Branch Regions 2 Pre-discovered Areas . | . . . . Known Exits Taken . | . . . . Unknown Exits Taken 3 | 1 1 1 . Scrap Searched . | . . . . Spaces Dug . | . . . . Terrain Destroyed . | . . . . Melee . | . . . . Projectile . | . . . . AOE . | . . . . Terrain Rammed . | . . . . Walls Destroyed . | . . . . Machines Disabled . | . . . . Actions | -11 -10 -10 -10 --------- Run | Yrd Mat Min Sub Total 809 | 52 288 276 193 Wait 236 | . 14 210 12 Move 483 | 45 233 63 142 Hop . | . . . . Pick Up 7 | 1 6 . . Fast Attach 8 | 6 2 . . Attach 4 | . 1 . 3 Detach . | . . . . Swap . | . . . . Drop 3 | . 3 . . Fire 53 | . 29 3 21 Melee . | . . . . Ram 2 | . . . 2 Kick . | . . . . Crush 13 | . . . 13 Escape Stasis . | . . . . Rewire . | . . . . Trap . | . . . . Miscellaneous . | . . . . Route ------- -11/Scrapyard -10/Materials (discovered 2 exits: [*Mat] / [*Min]) -10/Mines -10/Subcaves History --------- Turn | Location | Event 20 | -11/Scrapyard | Discovered new exit (range 15) 76 | -11/Scrapyard | Entered Materials 258 | -10/Materials | Discovered new exit (range 13) 316 | -10/Materials | Build established: Mutant 569 | -10/Materials | Discovered new exit (range 9) 590 | -10/Materials | Entered Mines 591 | -10/Mines | Assembled infested the area 596 | -10/Mines | Assisted by a Guerilla fighting off Assembled 948 | -10/Mines | Discovered new exit (range 5) 960 | -10/Mines | Entered Subcaves 1137 | -10/Subcaves | Visited Clippyterm 1144 | -10/Subcaves | Learned Factory trap positions 1359 | -10/Subcaves | Core integrity fell below 50% 1397 | -10/Subcaves | Core integrity fell below 20% 1404 | -10/Subcaves | Destroyed by JW-JMX(R) with Subdweller Laser Last Messages --------------- from 0b1. I don't know where they are, but my data indicates that someone they're looking for is frequently seen in Scraptown. 01232_ Q7R9%>0TDKEMN##N/R&3F=T,OXV&JOA 01293_ TWTGDHBM,WL%E&YKLK2AIEHUHKD RZAGA=RDF, 01350_ Lgt. Ion Engine destroyed. 01354_ Lgt. Assault Rifle destroyed. 01354_ Slammed into JW-JMX(R). 01366_ Lgt. Treads destroyed. 01366_ Slammed into JW-JMX(R). 01370_ Acquired 4 matter. 01370_ Lgt. Treads destroyed. 01370_ Slammed into JW-JMX(R). 01384_ Terrain Scanner destroyed. 01386_ Slammed into JW-JMX(R). 01391_ System corrupted: Matter fused (-8). 01394_ Slammed into JW-JMX(R). 01394_ Lgt. Treads destroyed. 01396_ Slammed into JW-JMX(R). 01403_ JW-JMX(R) knocked back. Map ----- +----------------------------------------------------+ | ?????????????????????????????????????????????????? | | ?????????????????????????????????????????????????? | | ?????????????????????????????????????????????????? | | ????????????????????????????????#????????????????? | | ?????????????????????????????????????????????????? | | ????????????????????????????#??#?????? ?? ??????? | | ?????????????????#??#??????????????#????? ###???? | | ???????????????????????????????###???????"""" ??? | | ??????????????????????????????## #???? """""#??? | | ?????????????##???????????????# ##?? """""###? | | ???????????????????????????????# #???#""""" ## | | ????????#??????#??????????#?????# ##??#""""" # | | ????????????????????#????#???????# ##?#""""" # | | ??????????#??????????????????####?# ""###"" ## | | ??????????????????#??#??#???## ###""" ## #? | | ??????#??????????????####??### " ###? | | ?????????????????????# ###### ##?#? | | ??????????#???#####?## # # ##??? | | ??????????????#"""### ####### # ##?? | | ?#????????????#"" ## ##### ########## ### | | ??????????????#"X ##??#### ###??# # | | ?????????????##"" ## #?##### ##?# ### | | ??????????????#"""## ### ### #### | | ????##????????####### ## ## #### | | #### ##????#???#????# R ## ## ##? | | # #????????#??#?# @ ### ## #? | | # #???????#??????# %%% #### ###? | | #???????????#?## % ### #### ###??? | | #?????????????## % ##?# #?## ##????? | | ##?????#####????## % #??# #??######?????? | | ##????## ###???### ##### ##?????#?????#?? | | #?#### ###?#### #????? ????##??? | | ### ### #??????????????? | | #### ## ## # # ##??????????????? | | ##??# ### ### ###???????? ?????? | | ????########?# ## #?###?? ?????????????? | | ????????#????##### % #????? ????#????????? | | ??#??????????????##### ##???????????????????? | | ???????????????????#?# #????????????????????? | | ?????????????????#???# #????????? ??????????? | | ???????#???##????????# #? ?? ??? ??????????? | | ??????????????????#??## ##? ?????????????????? | | ??????????????????????# #????????????????????? | | ??????????????????????# ???????????????????? | | ?????#???????#???????? ??????????????????? | | ?????????????????????? ?????????????????? | | ????????#????????????# ?????????????????? | | ??????????????????????## # #???????????????????? | | ???????????????????????? ?#?????????????????????? | | ?????????????????????????????????????????????????? | +----------------------------------------------------+ Best States ------------- Heat Dissipation 25 Energy Generation 10 Energy Capacity 125 Matter Stores 300 Matter Capacity 300 Sight Range 16 Terrain Scan Range 14 Terrain Scan Density 10 Evasion (%) 40 Recoil Reduction 2 Item Schematics ----------------- Cargo Storage Unit | -10/Materials | Hacked Huge Storage Unit | -10/Materials | Hacked Hcp. Storage Unit | -10/Materials | Hacked Robot Schematics ------------------ None Fabricated ------------ Nothing Alien Tech Used ----------------- None Achievements -------------- None Challenges ------------ None Game ------ Seed DisruptionPointySegregator Manual? 0 Play Time 00:08:42 Cumulative 110.2 hours Start 2024.04.19 @ 11:05:03 End 2024.04.19 @ 11:12:35 Sessions 1 Manual Loads 0 Difficulty Rogue Special Mode None Game No. 132 Rogue 132 Adventurer 0 Explorer 0 Win Type - Total 1 Types 1/0/0/0/0/0/0/0/0 Lore% 48 Gallery% 52 Achievement% 49 Wizard Run 0 Options --------- Layout 1 ASCII 0 Keyboard 0 Movement Mouse Keybinds 0 Fullscreen 2 Font 32/Smallcaps Map View 50x40 Zoom Use 0% Tactical HUD 1 Map Filters NONE Filters NONE Steam 1 RUN: 4bc05e2f-7940-44eb-bc1c-e2e84bccc2d1